fUSD/lending_fUSD_20251225
["ID","MTS","AMOUNT","RATE_DAILY","PERIOD"]
[399728296,1766638270193,-2430.0,0.00035069,2]
[399728297,1766638270204,-1000.0,0.00035107,7]
[399728298,1766638270214,-1077.55509592,0.00035241,30]
[399728299,1766638270224,-1000.0,0.00035268,30]
[399728300,1766638270235,-1000.0,0.00035281,2]
[399728301,1766638270245,-164.97,0.000353,14]
[399728302,1766638270256,-29657.05,0.000353,14]
[399728303,1766638270267,-300.0,0.00035341,10]
[399728304,1766638270278,-675.6926152,0.00035341,30]
[399728305,1766638270289,-300.0,0.00035341,10]
[399728306,1766638270300,-666.0,0.00035341,30]
[399728307,1766638270310,-300.0,0.00035341,10]
[399728308,1766638270320,-271.86472124,0.00035342,11]
[399728309,1766638270330,-500.0,0.00035342,11]
[399728310,1766638270341,-578.46,0.00035342,11]
[399728311,1766638270351,-857.92,0.00035342,11]
[399728312,1766638270362,-500.0,0.00035342,11]
[399728313,1766638270373,-500.0,0.00035342,11]
[399728314,1766638270386,-500.0,0.00035342,11]
[399728315,1766638270397,-500.0,0.00035342,11]
[399728316,1766638270407,-500.0,0.00035342,11]
[399728317,1766638270417,-559.47231222,0.00035342,11]
[399728318,1766638270429,-500.0,0.00035342,11]
[399728319,1766638270441,-2322.26,0.00035342,11]
[399728320,1766638270451,-500.0,0.00035342,11]
[399728321,1766638270463,-500.0,0.00035342,11]
[399728322,1766638270473,-1209.56,0.00035342,11]
[399728323,1766638270484,-549.23,0.00035342,11]
[399728324,1766638270495,-500.0,0.00035342,11]
[399728325,1766638270505,-5595.09,0.00035342,11]
[399728326,1766638270516,-308.2495469,0.00035342,11]
[399728327,1766638270526,-500.0,0.00035342,11]
[399728328,1766638270537,-500.0,0.00035342,11]
[399728329,1766638270550,-585.55,0.00035342,5]
[399728330,1766638270561,-300.0,0.0003538,10]
[399728331,1766638270571,-666.0,0.0003538,30]
[399728332,1766638270581,-300.0,0.0003538,10]
[399728333,1766638270592,-1000.0,0.000354,7]
[399728334,1766638270602,-300.0,0.00035458,10]
[399728335,1766638270613,-300.0,0.00035458,10]
[399728336,1766638270623,-2184.0,0.00035459,4]
[399728337,1766638270634,-300.0,0.00035499,10]
[399728338,1766638270645,-663.02,0.000355,14]
[399728339,1766638270655,-6867.78,0.000355,2]
[399728340,1766638270666,-1000.0,0.00035517,30]
[399728341,1766638270676,-152.0,0.00035537,4]
[399728342,1766638270687,-533.60328756,0.00035616,11]
[399728343,1766638270698,-578.46,0.00035616,11]
[399728344,1766638270708,-857.92,0.00035616,11]
[399728345,1766638270720,-500.0,0.00035616,11]
[399728346,1766638270731,-500.0,0.00035616,11]
[399728347,1766638270741,-500.0,0.00035616,11]
[399728348,1766638270752,-500.0,0.00035616,11]
[399728349,1766638270762,-500.0,0.00035616,11]
[399728350,1766638270772,-500.0,0.00035616,11]
[399728351,1766638270783,-2322.26,0.00035616,11]
[399728352,1766638270793,-505.51144733,0.00035616,11]
[399728353,1766638270804,-500.0,0.00035616,11]
[399728354,1766638270814,-1209.56,0.00035616,11]
[399728355,1766638270824,-2879.39,0.00035616,120]
[399728356,1766638270835,-549.23,0.00035616,11]
[399728357,1766638270846,-500.0,0.00035616,11]
[399728358,1766638270857,-5595.09,0.00035616,11]
[399728359,1766638270868,-500.0,0.00035616,11]
[399728360,1766638270879,-500.0,0.00035616,11]
[399728361,1766638270890,-585.55,0.00035616,5]
[399728362,1766638270900,-500.0,0.00035616,7]
[399728363,1766638270911,-527.16223238,0.00035616,7]
[399728364,1766638270923,-337.54795261,0.00035616,2]
[399728365,1766638270934,-1000.0,0.00035765,30]
[399728366,1766638270945,-547.0,0.00035781,2]
[399728367,1766638270955,-578.46,0.0003589,11]
[399728368,1766638270966,-857.92,0.0003589,11]
[399728369,1766638270977,-609.7619569,0.0003589,11]
[399728370,1766638270987,-280.420637,0.0003589,11]
[399728371,1766638270998,-444.08608284,0.0003589,11]
[399728372,1766638271008,-500.0,0.0003589,11]
[399728373,1766638271018,-500.0,0.0003589,11]
[399728374,1766638271029,-500.0,0.0003589,11]
[399728375,1766638271039,-2322.26,0.0003589,11]
[399728376,1766638271050,-500.0,0.0003589,11]
[399728377,1766638271060,-1209.56,0.0003589,11]
[399728378,1766638271071,-549.23,0.0003589,11]
[399728379,1766638271081,-500.0,0.0003589,11]
[399728380,1766638271092,-5595.09,0.0003589,11]
[399728381,1766638271103,-500.0,0.0003589,11]
[399728382,1766638271115,-500.0,0.0003589,11]
[399728383,1766638271125,-585.55,0.0003589,5]
[399728384,1766638271137,-1600.0,0.00035952,120]
[399728385,1766638271156,-1000.0,0.00036,7]
[399728386,1766638271166,-1000.0,0.00036013,30]
[399728387,1766638271178,-168.32,0.00036047,2]
[399728388,1766638271188,-663.02,0.000361,14]
[399728389,1766638271198,-6867.78,0.000361,2]
[399728390,1766638271208,-578.46,0.00036164,11]
[399728391,1766638271219,-857.92,0.00036164,11]
[399728392,1766638271229,-500.0,0.00036164,11]
[399728393,1766638271239,-500.0,0.00036164,11]
[399728394,1766638271250,-500.0,0.00036164,11]
[399728395,1766638271260,-2322.26,0.00036164,11]
[399728396,1766638271271,-500.0,0.00036164,11]
[399728397,1766638271282,-1209.56,0.00036164,11]
[399728398,1766638271293,-549.23,0.00036164,11]
[399728399,1766638271303,-500.0,0.00036164,11]
[399728400,1766638271314,-5595.09,0.00036164,11]
[399728401,1766638271325,-500.0,0.00036164,11]
[399728402,1766638271336,-500.0,0.00036164,11]
[399728403,1766638271347,-585.55,0.00036164,5]
[399728404,1766638271358,-659.62,0.00036192,2]
[399728405,1766638271370,-659.62,0.00036192,2]
[399728406,1766638271381,-659.62,0.00036192,2]
[399728407,1766638271395,-659.58,0.00036242,2]
[399728408,1766638271406,-659.58,0.00036242,2]
[399728409,1766638271417,-659.58,0.00036242,2]
[399728410,1766638271427,-659.58,0.00036242,2]
[399728411,1766638271438,-1000.0,0.00036261,30]
[399728412,1766638271448,-2000.0,0.000363,2]
[399728413,1766638271458,-525.081,0.00036303,44]
[399728414,1766638271470,-7364.012,0.00036303,44]
[399728415,1766638271480,-29657.05,0.000364,14]
[399728416,1766638271491,-578.46,0.00036438,11]
[399728417,1766638271501,-857.92,0.00036438,11]
[399728418,1766638271512,-500.0,0.00036438,11]
[399728419,1766638271523,-500.0,0.00036438,11]
[399728420,1766638271533,-2322.26,0.00036438,11]
[399728421,1766638271543,-500.0,0.00036438,11]
[399728422,1766638271553,-1209.56,0.00036438,11]
[399728423,1766638271563,-549.23,0.00036438,11]
[399728424,1766638271573,-500.0,0.00036438,11]
[399728425,1766638271584,-5595.09,0.00036438,11]
[399728426,1766638271595,-500.0,0.00036438,11]
[399728427,1766638271606,-500.0,0.00036438,11]
[399728428,1766638271616,-585.55,0.00036438,5]
[399728429,1766638271627,-164.97,0.000365,14]
[399728430,1766638271638,-1000.0,0.0003651,30]
[399728431,1766638271648,-150.0,0.00036548,2]
[399728432,1766638271659,-150.0,0.00036548,2]
[399728433,1766638271669,-150.0,0.00036548,2]
[399728434,1766638271679,-150.0,0.00036548,2]
[399728435,1766638271691,-150.0,0.00036548,2]
[399728436,1766638271949,-150.0,0.00036548,2]
[399728437,1766638272001,-150.0,0.00036548,2]
[399728438,1766638272011,-150.0,0.00036548,2]
[399728439,1766638272022,-150.0,0.00036548,2]
[399728440,1766638272032,-150.0,0.00036548,2]
[399728441,1766638272042,-150.0,0.00036548,2]
[399728442,1766638272052,-150.0,0.00036548,2]
[399728443,1766638272061,-150.0,0.00036548,2]
[399728444,1766638272071,-150.0,0.00036548,2]
[399728445,1766638272082,-150.0,0.00036548,2]
[399728446,1766638272093,-150.0,0.00036548,2]
[399728447,1766638272104,-150.0,0.00036548,2]
[399728448,1766638272114,-300.3,0.00036548,2]
[399728449,1766638272125,-1220.11,0.0003656,2]
[399728450,1766638272136,-1000.0,0.000366,7]
[399728451,1766638272146,-659.58,0.00036626,2]
[399728452,1766638272156,-659.62,0.00036626,2]
[399728453,1766638272166,-663.02,0.000367,14]
[399728454,1766638272176,-6867.78,0.000367,2]
[399728455,1766638272186,-578.46,0.00036712,11]
[399728456,1766638272196,-857.92,0.00036712,11]
[399728457,1766638272206,-500.0,0.00036712,11]
[399728458,1766638272216,-363.39306336,0.00036712,11]
[399728459,1766638272227,-2322.26,0.00036712,11]
[399728460,1766638272236,-500.0,0.00036712,11]
[399728461,1766638272246,-1209.56,0.00036712,11]
[399728462,1766638272256,-549.23,0.00036712,11]
[399728463,1766638272266,-500.0,0.00036712,11]
[399728464,1766638272276,-5595.09,0.00036712,11]
[399728465,1766638272286,-500.0,0.00036712,11]
[399728466,1766638272296,-500.0,0.00036712,11]
[399728467,1766638272307,-585.55,0.00036712,5]
[399728468,1766638272316,-10810.36,0.00036717,2]
[399728469,1766638272326,-1000.0,0.00036758,30]
[399728470,1766638272336,-500.0,0.00036986,120]
[399728471,1766638272346,-242.06,0.00036986,120]
[399728472,1766638272355,-578.46,0.00036986,11]
[399728473,1766638272365,-857.92,0.00036986,11]
[399728474,1766638272375,-500.0,0.00036986,11]
[399728475,1766638272388,-2322.26,0.00036986,11]
[399728476,1766638272398,-500.0,0.00036986,11]
[399728477,1766638272407,-1209.56,0.00036986,11]
[399728478,1766638272418,-2879.39,0.00036986,120]
[399728479,1766638272430,-549.23,0.00036986,11]
[399728480,1766638272440,-444.34106606,0.00036986,11]
[399728481,1766638272450,-5595.09,0.00036986,11]
[399728482,1766638272463,-500.0,0.00036986,11]
[399728483,1766638272473,-492.29775278,0.00036986,11]
[399728484,1766638272483,-585.55,0.00036986,5]
[399728485,1766638272492,-1000.0,0.00037006,30]
[399728486,1766638272503,-1000.0,0.000372,7]
[399728487,1766638272513,-2184.0,0.0003723,5]
[399728488,1766638272522,-1000.0,0.00037254,30]
[399728489,1766638272532,-578.46,0.0003726,11]
[399728490,1766638272541,-857.92,0.0003726,11]
[399728491,1766638272551,-500.0,0.0003726,11]
[399728492,1766638272562,-2322.26,0.0003726,11]
[399728493,1766638272571,-500.0,0.0003726,11]
[399728494,1766638272580,-1209.56,0.0003726,11]
[399728495,1766638272591,-549.23,0.0003726,11]
[399728496,1766638272600,-5595.09,0.0003726,11]
[399728497,1766638272611,-614.68592822,0.0003726,11]
[399728498,1766638272622,-585.55,0.0003726,5]
[399728499,1766638272632,-663.02,0.000373,14]
[399728500,1766638272642,-6867.78,0.000373,2]
[399728501,1766638272651,-254.13060141,0.00037444,2]
[399728502,1766638272661,-29657.05,0.000375,14]
[399728503,1766638272671,-1000.0,0.00037503,30]
[399728504,1766638272681,-300.0,0.00037506,2]
[399728505,1766638272691,-578.46,0.00037534,11]
[399728506,1766638272701,-857.92,0.00037534,11]
[399728507,1766638272711,-500.0,0.00037534,11]
[399728508,1766638272721,-2322.26,0.00037534,11]
[399728509,1766638272731,-500.0,0.00037534,11]
[399728510,1766638272741,-1209.56,0.00037534,11]
[399728511,1766638272750,-549.23,0.00037534,11]
[399728512,1766638272760,-5595.09,0.00037534,11]
[399728513,1766638272770,-585.55,0.00037534,5]
[399728514,1766638272779,-662.79,0.00037585,2]
[399728515,1766638272789,-659.58,0.00037585,2]
[399728516,1766638272799,-659.58,0.00037585,2]
[399728517,1766638272809,-659.58,0.00037585,2]
[399728518,1766638272818,-300.0,0.0003767,2]
[399728519,1766638272828,-1000.0,0.00037751,30]
[399728520,1766638272839,-1444.0,0.00037753,120]
[399728521,1766638272848,-1274.48,0.00037767,30]
[399728522,1766638272858,-1274.48,0.00037767,30]
[399728523,1766638272868,-1274.48,0.00037767,30]
[399728524,1766638272878,-1274.48,0.00037767,30]
[399728525,1766638272888,-1000.0,0.000378,7]
[399728526,1766638272897,-578.46,0.00037808,11]
[399728527,1766638272907,-857.92,0.00037808,11]
[399728528,1766638272917,-500.0,0.00037808,11]
[399728529,1766638272928,-2322.26,0.00037808,11]
[399728530,1766638272938,-500.0,0.00037808,11]
[399728531,1766638272947,-1209.56,0.00037808,11]
[399728532,1766638272958,-549.23,0.00037808,11]
[399728533,1766638272968,-5595.09,0.00037808,11]
[399728534,1766638272978,-585.55,0.00037808,5]
[399728535,1766638272988,-1594.12069331,0.00037815,45]
[399728536,1766638272998,-12287.41952416,0.0003783,2]
[399728537,1766638273008,-250.0,0.00037898,31]
[399728538,1766638273019,-553.64373807,0.00037898,31]
[399728539,1766638273029,-500.0,0.00037898,31]
[399728540,1766638273039,-500.0,0.00037898,31]
[399728541,1766638273049,-500.0,0.00037898,31]
[399728542,1766638273059,-151.0,0.00037898,31]
[399728543,1766638273068,-1500.0,0.00037898,31]
[399728544,1766638273078,-500.0,0.00037898,31]
[399728545,1766638273090,-500.0,0.00037898,31]
[399728546,1766638273099,-250.0,0.00037898,31]
[399728547,1766638273109,-1500.0,0.00037898,31]
[399728548,1766638273119,-250.0,0.00037898,31]
[399728549,1766638273129,-250.0,0.00037899,31]
[399728550,1766638273139,-533.88981491,0.00037899,31]
[399728551,1766638273150,-500.0,0.00037899,31]
[399728552,1766638273160,-500.0,0.00037899,31]
[399728553,1766638273170,-500.0,0.00037899,31]
[399728554,1766638273180,-151.0,0.00037899,31]
[399728555,1766638273190,-1500.0,0.00037899,31]
[399728556,1766638273200,-500.0,0.00037899,31]
[399728557,1766638273210,-500.0,0.00037899,31]
[399728558,1766638273220,-1500.0,0.00037899,31]
[399728559,1766638273230,-250.0,0.00037899,31]
[399728560,1766638273240,-250.0,0.00037899,31]
[399728561,1766638273250,-663.02,0.000379,14]
[399728562,1766638273260,-300.0,0.00037933,2]
[399728563,1766638273270,-300.0,0.00037992,2]
[399728564,1766638273281,-1000.0,0.00037999,30]
[399728565,1766638273291,-250.0,0.00037999,30]
[399728566,1766638273300,-500.0,0.00037999,30]
[399728567,1766638273311,-500.0,0.00037999,30]
[399728568,1766638273320,-514.84070869,0.00037999,30]
[399728569,1766638273330,-500.0,0.00037999,30]
[399728570,1766638273340,-151.0,0.00037999,30]
[399728571,1766638273349,-1500.0,0.00037999,30]
[399728572,1766638273359,-500.0,0.00037999,30]
[399728573,1766638273368,-500.0,0.00037999,30]
[399728574,1766638273378,-1500.0,0.00037999,30]
[399728575,1766638273392,-250.0,0.00037999,30]
[399728576,1766638273402,-250.0,0.00037999,30]
[399728577,1766638273411,-50000.0,0.00038,38]
[399728578,1766638273422,-50000.0,0.00038,28]
[399728579,1766638273433,-50000.0,0.00038,18]
[399728580,1766638273442,-164.97,0.00038,14]
[399728581,1766638273451,-774.83334,0.00038,10]
[399728582,1766638273465,-161.0,0.00038,30]
[399728583,1766638273475,-155.0,0.00038,30]
[399728584,1766638273484,-500.0,0.00038,30]
[399728585,1766638273494,-300.0,0.00038024,2]
[399728586,1766638273503,-1274.48,0.00038041,30]
[399728587,1766638273513,-1274.48,0.00038041,30]
[399728588,1766638273523,-659.62,0.00038055,2]
[399728589,1766638273533,-659.62,0.00038055,2]
[399728590,1766638273543,-659.62,0.00038055,2]
[399728591,1766638273553,-659.62,0.00038055,2]
[399728592,1766638273562,-659.62,0.00038055,2]
[399728593,1766638273572,-659.62,0.00038055,2]
[399728594,1766638273582,-659.62,0.00038055,2]
[399728595,1766638273591,-659.62,0.00038055,2]
[399728596,1766638273601,-659.62,0.00038055,2]
[399728597,1766638273611,-659.62,0.00038055,2]
[399728598,1766638273620,-659.62,0.00038055,2]
[399728599,1766638273629,-659.62,0.00038055,2]
[399728600,1766638273639,-659.62,0.00038055,2]
[399728601,1766638273649,-659.62,0.00038055,2]
[399728602,1766638273659,-659.62,0.00038055,2]
[399728603,1766638273670,-658.98,0.00038055,2]
[399728604,1766638273679,-300.0,0.00038064,2]
[399728605,1766638273689,-612.0,0.00038069,2]
[399728606,1766638273699,-1327.0,0.00038069,2]
[399728607,1766638273708,-1610.0,0.00038069,2]
[399728608,1766638273718,-3459.0,0.00038069,2]
[399728609,1766638273729,-432.0,0.00038069,2]
[399728610,1766638273739,-1263.0,0.00038069,2]
[399728611,1766638273749,-1198.0,0.00038069,2]
[399728612,1766638273758,-912.0,0.00038069,2]
[399728613,1766638273769,-150.0,0.00038069,2]
[399728614,1766638273778,-564.0,0.00038069,2]
[399728615,1766638273787,-4807.0,0.00038069,2]
[399728616,1766638273797,-2430.0,0.00038069,2]
[399728617,1766638273806,-578.46,0.00038082,11]
[399728618,1766638273816,-857.92,0.00038082,11]
[399728619,1766638273826,-500.0,0.00038082,11]
[399728620,1766638273835,-2322.26,0.00038082,11]
[399728621,1766638273844,-523.97881855,0.00038082,11]
[399728622,1766638273854,-1209.56,0.00038082,11]
[399728623,1766638273863,-549.23,0.00038082,11]
[399728624,1766638273873,-5595.09,0.00038082,11]
[399728625,1766638273883,-585.55,0.00038082,5]
[399728626,1766638273893,-300.0,0.00038099,2]
[399728627,1766638273903,-300.0,0.00038107,2]
[399728628,1766638273912,-150.0,0.00038133,30]
[399728629,1766638273922,-1643.77389615,0.00038133,30]
[399728630,1766638273931,-150.0,0.00038133,30]
[399728631,1766638273940,-501.68677073,0.00038133,30]
[399728632,1766638273951,-150.0,0.00038133,30]
[399728633,1766638273960,-13524.04876716,0.00038133,30]
[399728634,1766638273970,-300.0,0.0003819,2]
[399728635,1766638273979,-1220.37,0.00038192,2]
[399728636,1766638273989,-1220.37,0.00038192,2]
[399728637,1766638273999,-1220.37,0.00038192,2]
[399728638,1766638274009,-1220.37,0.00038192,2]
[399728639,1766638274019,-1215.38,0.00038192,2]
[399728640,1766638274028,-1000.0,0.00038222,7]
[399728641,1766638274038,-255.36,0.00038244,2]
[399728642,1766638274048,-300.0,0.0003825,2]
[399728643,1766638274058,-150.0,0.00038292,7]
[399728644,1766638274067,-1274.48,0.00038315,30]
[399728645,1766638274077,-1274.48,0.00038315,30]
[399728646,1766638274087,-152.0,0.00038353,5]
[399728647,1766638274096,-578.46,0.00038356,120]
[399728648,1766638274106,-857.92,0.00038356,120]
[399728649,1766638274116,-500.0,0.00038356,120]
[399728650,1766638274126,-2322.26,0.00038356,120]
[399728651,1766638274136,-1209.56,0.00038356,120]
[399728652,1766638274146,-2879.39,0.00038356,120]
[399728653,1766638274155,-549.23,0.00038356,120]
[399728654,1766638274171,-5595.09,0.00038356,120]
[399728655,1766638274181,-585.55,0.00038356,5]
[399728656,1766638274191,-300.0,0.00038363,2]
[399728657,1766638274200,-1000.0,0.00038375,7]
[399728658,1766638274210,-150.0,0.00038399,7]
[399728659,1766638274220,-300.0,0.00038404,2]
[399728660,1766638274230,-1000.0,0.00038419,7]
[399728661,1766638274240,-1000.0,0.00038441,7]
[399728662,1766638274250,-150.0,0.00038448,7]
[399728663,1766638274260,-300.0,0.00038457,2]
[399728664,1766638274270,-150.0,0.00038459,7]
[399728665,1766638274279,-150.0,0.00038463,7]
[399728666,1766638274289,-300.0,0.00038482,2]
[399728667,1766638274298,-150.0,0.0003849,7]
[399728668,1766638274308,-300.0,0.00038518,2]
[399728669,1766638274317,-1000.0,0.00038518,7]
[399728670,1766638274327,-1000.0,0.00038541,7]
[399728671,1766638274338,-150.0,0.00038545,7]
[399728672,1766638274347,-1000.0,0.00038558,7]
[399728673,1766638274357,-150.0,0.00038567,7]
[399728674,1766638274366,-1274.48,0.00038589,30]
[399728675,1766638274383,-1274.48,0.00038589,30]
[399728676,1766638274393,-849.0,0.000386,2]
[399728677,1766638274403,-976.0,0.000386,2]
[399728678,1766638274413,-305.0,0.000386,2]
[399728679,1766638274424,-500.0,0.00038609,30]
[399728680,1766638274434,-250.0,0.00038609,30]
[399728681,1766638274444,-500.0,0.00038609,30]
[399728682,1766638274455,-496.47127164,0.00038609,30]
[399728683,1766638274464,-500.0,0.00038609,30]
[399728684,1766638274474,-151.0,0.00038609,30]
[399728685,1766638274483,-1500.0,0.00038609,30]
[399728686,1766638274493,-500.0,0.00038609,30]
[399728687,1766638274502,-500.0,0.00038609,30]
[399728688,1766638274513,-1500.0,0.00038609,30]
[399728689,1766638274524,-250.0,0.00038609,30]
[399728690,1766638274539,-250.0,0.00038609,30]
[399728691,1766638274548,-150.0,0.0003861,30]
[399728692,1766638274558,-150.0,0.0003861,30]
[399728693,1766638274568,-168.32,0.00038622,2]
[399728694,1766638274577,-578.46,0.0003863,120]
[399728695,1766638274587,-857.92,0.0003863,120]
[399728696,1766638274597,-500.0,0.0003863,120]
[399728697,1766638274607,-2322.26,0.0003863,120]
[399728698,1766638274616,-1209.56,0.0003863,120]
[399728699,1766638274626,-549.23,0.0003863,120]
[399728700,1766638274636,-5595.09,0.0003863,120]
[399728701,1766638274645,-585.55,0.0003863,5]
[399728702,1766638274656,-161.0,0.0003863,90]
[399728703,1766638274666,-1000.0,0.00038678,7]
[399728704,1766638274676,-162.0,0.0003868,11]
[399728705,1766638274685,-200.0,0.00038687,20]
[399728706,1766638274695,-200.0,0.00038688,20]
[399728707,1766638274704,-200.0,0.00038688,20]
[399728708,1766638274714,-1000.0,0.00038695,7]
[399728709,1766638274727,-1000.0,0.00038712,7]
[399728710,1766638274741,-150.0,0.00038775,7]
[399728711,1766638274756,-1000.0,0.00038785,7]
[399728712,1766638274770,-300.0,0.00038788,2]
[399728713,1766638274782,-150.0,0.00038789,7]
[399728714,1766638274793,-300.0,0.00038794,2]
[399728715,1766638274806,-150.0,0.00038794,7]
[399728716,1766638274820,-1000.0,0.00038795,7]
[399728717,1766638274833,-165.3,0.000388,27]
[399728718,1766638274846,-165.3,0.000388,27]
[399728719,1766638274859,-150.0,0.00038802,7]
[399728720,1766638274873,-1000.0,0.00038802,7]
[399728721,1766638274892,-2000.0,0.00038805,3]
[399728722,1766638274905,-300.0,0.00038823,2]
[399728723,1766638274919,-150.0,0.00038826,7]
[399728724,1766638274932,-150.0,0.00038851,7]
[399728725,1766638274943,-1274.48,0.00038863,30]
[399728726,1766638274954,-1274.48,0.00038863,30]
[399728727,1766638274968,-150.0,0.00038864,7]
[399728728,1766638274982,-1000.0,0.00038884,7]
[399728729,1766638274995,-815.01894881,0.000389,2]
[399728730,1766638275009,-235.22228614,0.000389,7]
[399728731,1766638275023,-621.7053326,0.000389,2]
[399728732,1766638275036,-223.45632631,0.000389,2]
[399728733,1766638275050,-606.45408044,0.000389,2]
[399728734,1766638275064,-578.46,0.00038904,120]
[399728735,1766638275077,-857.92,0.00038904,120]
[399728736,1766638275089,-500.0,0.00038904,120]
[399728737,1766638275104,-2322.26,0.00038904,120]
[399728738,1766638275116,-1209.56,0.00038904,120]
[399728739,1766638275130,-549.23,0.00038904,120]
[399728740,1766638275143,-5595.09,0.00038904,120]
[399728741,1766638275158,-585.55,0.00038904,5]
[399728742,1766638275171,-9629.7,0.00038904,2]
[399728743,1766638275184,-1000.0,0.00038906,7]
[399728744,1766638275197,-300.0,0.00038909,2]
[399728745,1766638275211,-150.0,0.00038914,7]
[399728746,1766638275235,-150.0,0.00038917,7]
[399728747,1766638275250,-961.6227934,0.00038927,7]
[399728748,1766638275266,-1000.0,0.00038934,7]
[399728749,1766638275280,-300.0,0.00038946,2]
[399728750,1766638275293,-1000.0,0.00038947,7]
[399728751,1766638275303,-310.0,0.00038959,120]
[399728752,1766638275315,-1000.0,0.00038971,7]
[399728753,1766638275327,-1000.0,0.00038983,7]
[399728754,1766638275339,-634.38,0.00038984,120]
[399728755,1766638275352,-500.0,0.00038987,54]
[399728756,1766638275368,-250.0,0.00038987,54]
[399728757,1766638275379,-478.75725327,0.00038987,54]
[399728758,1766638275394,-500.0,0.00038987,54]
[399728759,1766638275405,-500.0,0.00038987,54]
[399728760,1766638275420,-151.0,0.00038987,54]
[399728761,1766638275433,-1500.0,0.00038987,54]
[399728762,1766638275447,-500.0,0.00038987,54]
[399728763,1766638275464,-500.0,0.00038987,54]
[399728764,1766638275476,-1500.0,0.00038987,54]
[399728765,1766638275488,-250.0,0.00038987,54]
[399728766,1766638275499,-250.0,0.00038987,54]
[399728767,1766638275511,-564.0,0.00038987,54]
[399728768,1766638275526,-300.251214,0.00038989,93]
[399728769,1766638275538,-151.0,0.00038997,14]
[399728770,1766638275551,-311.1,0.00038998,30]
[399728771,1766638275565,-311.1,0.00038998,30]
[399728772,1766638275578,-250.0,0.00038998,30]
[399728773,1766638275592,-500.0,0.00038998,30]
[399728774,1766638275609,-156.587,0.00038998,30]
[399728775,1766638275623,-500.0,0.00038998,30]
[399728776,1766638275637,-429.318,0.00038998,30]
[399728777,1766638275652,-539.24,0.00038998,30]
[399728778,1766638275667,-250.0,0.00038998,31]
[399728779,1766638275682,-500.0,0.00038998,31]
[399728780,1766638275697,-225.31429834,0.00038998,31]
[399728781,1766638275711,-500.0,0.00038998,31]
[399728782,1766638275725,-445.202766,0.00038998,31]
[399728783,1766638275738,-559.19188,0.00038998,31]
[399728784,1766638275752,-500.0,0.00038998,45]
[399728785,1766638275765,-250.0,0.00038998,45]
[399728786,1766638275778,-461.67526834,0.00038998,45]
[399728787,1766638275791,-500.0,0.00038998,45]
[399728788,1766638275804,-544.95108606,0.00038998,45]
[399728789,1766638275817,-500.0,0.00038998,30]
[399728790,1766638275831,-500.0,0.00038998,31]
[399728791,1766638275844,-151.0,0.00038998,30]
[399728792,1766638275858,-500.0,0.00038998,45]
[399728793,1766638275871,-151.0,0.00038998,30]
[399728794,1766638275884,-151.0,0.00038998,31]
[399728795,1766638275897,-1500.0,0.00038998,30]